Workbook

Sheet Vonios pertvarkymo išlaidos
B1: Vonios kambario pertvarkymo išlaidų darbalapis
B2: PASTABA. Lentelės skirtumo stulpeliai parodys, ar faktinė suma viršijo planuojamą sumą. Raudoni skaičiai nurodo didesnę nei planuotą sumą (neigiama reikšmė), o juodi skaičiai nurodo mažesnę nei planuotą sumą (teigiama reikšmė).
E3: Vieneto kaina (Eur) | H3: Bendra kaina (Eur)
B4: Zona | C4: Prekės | D4: Kiekis | E4: Apytikslė | F4: Faktinės | G4: Skirtumas | H4: Apytikslė | I4: Faktinės | J4: Skirtumas
B5: Vonia / dušas | C5: Vonia, ketaus, 152 cm, standartinė | D5: 1 | E5: 250.00 EUR | F5: =RANDBETWEEN(E5+2,E5+20) -> 263.00 EUR | G5: =IFERROR(Išlaidos[[#This Row],[Apytikslė]]-Išlaidos[[#This Row],[Faktinės]], "") -> -13.00 EUR | H5: =IFERROR(Išlaidos[[#This Row],[Kiekis]]*Išlaidos[[#This Row],[Apytikslė]], "") -> 250.00 EUR | I5: =IFERROR(Išlaidos[[#This Row],[Kiekis]]*Išlaidos[[#This Row],[Faktinės]], "") -> 263.00 EUR | J5: =IFERROR(Išlaidos[[#This Row],[Apytikslė ]]-Išlaidos[[#This Row],[Faktinės ]], "") -> -13.00 EUR
B6: Vonia / dušas | C6: Dušo kabinos durys su vyriais, standartinės | D6: 1 | E6: 200.00 EUR | F6: 212.00 EUR | G6: =IFERROR(Išlaidos[[#This Row],[Apytikslė]]-Išlaidos[[#This Row],[Faktinės]], "") -> -12.00 EUR | H6: =IFERROR(Išlaidos[[#This Row],[Kiekis]]*Išlaidos[[#This Row],[Apytikslė]], "") -> 200.00 EUR | I6: =IFERROR(Išlaidos[[#This Row],[Kiekis]]*Išlaidos[[#This Row],[Faktinės]], "") -> 212.00 EUR | J6: =IFERROR(Išlaidos[[#This Row],[Apytikslė ]]-Išlaidos[[#This Row],[Faktinės ]], "") -> -12.00 EUR
B7: Vonia / dušas | C7: Dušo galvutė, standartinė | D7: 1 | E7: 50.00 EUR | F7: 68.00 EUR | G7: =IFERROR(Išlaidos[[#This Row],[Apytikslė]]-Išlaidos[[#This Row],[Faktinės]], "") -> -18.00 EUR | H7: =IFERROR(Išlaidos[[#This Row],[Kiekis]]*Išlaidos[[#This Row],[Apytikslė]], "") -> 50.00 EUR | I7: =IFERROR(Išlaidos[[#This Row],[Kiekis]]*Išlaidos[[#This Row],[Faktinės]], "") -> 68.00 EUR | J7: =IFERROR(Išlaidos[[#This Row],[Apytikslė ]]-Išlaidos[[#This Row],[Faktinės ]], "") -> -18.00 EUR
B8: Vonia / dušas | C8: Vonios siena, standartinė | D8: 1 | E8: 200.00 EUR | F8: 218.00 EUR | G8: =IFERROR(Išlaidos[[#This Row],[Apytikslė]]-Išlaidos[[#This Row],[Faktinės]], "") -> -18.00 EUR | H8: =IFERROR(Išlaidos[[#This Row],[Kiekis]]*Išlaidos[[#This Row],[Apytikslė]], "") -> 200.00 EUR | I8: =IFERROR(Išlaidos[[#This Row],[Kiekis]]*Išlaidos[[#This Row],[Faktinės]], "") -> 218.00 EUR | J8: =IFERROR(Išlaidos[[#This Row],[Apytikslė ]]-Išlaidos[[#This Row],[Faktinės ]], "") -> -18.00 EUR
B9: Spintelės | C9: Pakabinama spintelė, 61 cm, prabangi | D9: 1 | E9: 200.00 EUR | F9: 211.00 EUR | G9: =IFERROR(Išlaidos[[#This Row],[Apytikslė]]-Išlaidos[[#This Row],[Faktinės]], "") -> -11.00 EUR | H9: =IFERROR(Išlaidos[[#This Row],[Kiekis]]*Išlaidos[[#This Row],[Apytikslė]], "") -> 200.00 EUR | I9: =IFERROR(Išlaidos[[#This Row],[Kiekis]]*Išlaidos[[#This Row],[Faktinės]], "") -> 211.00 EUR | J9: =IFERROR(Išlaidos[[#This Row],[Apytikslė ]]-Išlaidos[[#This Row],[Faktinės ]], "") -> -11.00 EUR
B10: Spintelės | C10: Pastatoma spintelė, 76 cm, standartinė | D10: 2 | E10: 100.00 EUR | F10: 111.00 EUR | G10: =IFERROR(Išlaidos[[#This Row],[Apytikslė]]-Išlaidos[[#This Row],[Faktinės]], "") -> -11.00 EUR | H10: =IFERROR(Išlaidos[[#This Row],[Kiekis]]*Išlaidos[[#This Row],[Apytikslė]], "") -> 200.00 EUR | I10: =IFERROR(Išlaidos[[#This Row],[Kiekis]]*Išlaidos[[#This Row],[Faktinės]], "") -> 222.00 EUR | J10: =IFERROR(Išlaidos[[#This Row],[Apytikslė ]]-Išlaidos[[#This Row],[Faktinės ]], "") -> -22.00 EUR
B11: Stalviršiai | C11: Keramikinė plytelė, prabangi (kiekis metrais) | D11: 5 | E11: 22.50 EUR | F11: 35.00 EUR | G11: =IFERROR(Išlaidos[[#This Row],[Apytikslė]]-Išlaidos[[#This Row],[Faktinės]], "") -> -12.50 EUR | H11: =IFERROR(Išlaidos[[#This Row],[Kiekis]]*Išlaidos[[#This Row],[Apytikslė]], "") -> 112.50 EUR | I11: =IFERROR(Išlaidos[[#This Row],[Kiekis]]*Išlaidos[[#This Row],[Faktinės]], "") -> 175.00 EUR | J11: =IFERROR(Išlaidos[[#This Row],[Apytikslė ]]-Išlaidos[[#This Row],[Faktinės ]], "") -> -62.50 EUR
B12: Maišytuvai | C12: Vonios maišytuvas, standartinis | D12: 1 | E12: 90.00 EUR | F12: 110.00 EUR | G12: =IFERROR(Išlaidos[[#This Row],[Apytikslė]]-Išlaidos[[#This Row],[Faktinės]], "") -> -20.00 EUR | H12: =IFERROR(Išlaidos[[#This Row],[Kiekis]]*Išlaidos[[#This Row],[Apytikslė]], "") -> 90.00 EUR | I12: =IFERROR(Išlaidos[[#This Row],[Kiekis]]*Išlaidos[[#This Row],[Faktinės]], "") -> 110.00 EUR | J12: =IFERROR(Išlaidos[[#This Row],[Apytikslė ]]-Išlaidos[[#This Row],[Faktinės ]], "") -> -20.00 EUR
B13: Maišytuvai | C13: Dušo maišytuvas, vienos svirties, standartinis | D13: 1 | E13: 115.00 EUR | F13: 119.00 EUR | G13: =IFERROR(Išlaidos[[#This Row],[Apytikslė]]-Išlaidos[[#This Row],[Faktinės]], "") -> -4.00 EUR | H13: =IFERROR(Išlaidos[[#This Row],[Kiekis]]*Išlaidos[[#This Row],[Apytikslė]], "") -> 115.00 EUR | I13: =IFERROR(Išlaidos[[#This Row],[Kiekis]]*Išlaidos[[#This Row],[Faktinės]], "") -> 119.00 EUR | J13: =IFERROR(Išlaidos[[#This Row],[Apytikslė ]]-Išlaidos[[#This Row],[Faktinės ]], "") -> -4.00 EUR
B14: Maišytuvai | C14: Kriauklės maišytuvas, standartinis | D14: 1 | E14: 95.00 EUR | F14: 100.00 EUR | G14: =IFERROR(Išlaidos[[#This Row],[Apytikslė]]-Išlaidos[[#This Row],[Faktinės]], "") -> -5.00 EUR | H14: =IFERROR(Išlaidos[[#This Row],[Kiekis]]*Išlaidos[[#This Row],[Apytikslė]], "") -> 95.00 EUR | I14: =IFERROR(Išlaidos[[#This Row],[Kiekis]]*Išlaidos[[#This Row],[Faktinės]], "") -> 100.00 EUR | J14: =IFERROR(Išlaidos[[#This Row],[Apytikslė ]]-Išlaidos[[#This Row],[Faktinės ]], "") -> -5.00 EUR
B15: Grindys | C15: Keramikinė plytelė, standartinė (kiekis kvadratiniais metrais) | D15: 35 | E15: 12.00 EUR | F15: 16.00 EUR | G15: =IFERROR(Išlaidos[[#This Row],[Apytikslė]]-Išlaidos[[#This Row],[Faktinės]], "") -> -4.00 EUR | H15: =IFERROR(Išlaidos[[#This Row],[Kiekis]]*Išlaidos[[#This Row],[Apytikslė]], "") -> 420.00 EUR | I15: =IFERROR(Išlaidos[[#This Row],[Kiekis]]*Išlaidos[[#This Row],[Faktinės]], "") -> 560.00 EUR | J15: =IFERROR(Išlaidos[[#This Row],[Apytikslė ]]-Išlaidos[[#This Row],[Faktinės ]], "") -> -140.00 EUR
B16: Įrankiai | C16: Rankšluosčio laikiklis, standartinis | D16: 2 | E16: 15.00 EUR | F16: 33.00 EUR | G16: =IFERROR(Išlaidos[[#This Row],[Apytikslė]]-Išlaidos[[#This Row],[Faktinės]], "") -> -18.00 EUR | H16: =IFERROR(Išlaidos[[#This Row],[Kiekis]]*Išlaidos[[#This Row],[Apytikslė]], "") -> 30.00 EUR | I16: =IFERROR(Išlaidos[[#This Row],[Kiekis]]*Išlaidos[[#This Row],[Faktinės]], "") -> 66.00 EUR | J16: =IFERROR(Išlaidos[[#This Row],[Apytikslė ]]-Išlaidos[[#This Row],[Faktinės ]], "") -> -36.00 EUR
B17: Įrankiai | C17: Tualetinio popieriaus laikiklis | D17: 1 | E17: 10.00 EUR | F17: 13.00 EUR | G17: =IFERROR(Išlaidos[[#This Row],[Apytikslė]]-Išlaidos[[#This Row],[Faktinės]], "") -> -3.00 EUR | H17: =IFERROR(Išlaidos[[#This Row],[Kiekis]]*Išlaidos[[#This Row],[Apytikslė]], "") -> 10.00 EUR | I17: =IFERROR(Išlaidos[[#This Row],[Kiekis]]*Išlaidos[[#This Row],[Faktinės]], "") -> 13.00 EUR | J17: =IFERROR(Išlaidos[[#This Row],[Apytikslė ]]-Išlaidos[[#This Row],[Faktinės ]], "") -> -3.00 EUR
B18: Apšvietimas | C18: Įleidžiami šviestuvai, standartiniai | D18: 4 | E18: 25.00 EUR | F18: 27.00 EUR | G18: =IFERROR(Išlaidos[[#This Row],[Apytikslė]]-Išlaidos[[#This Row],[Faktinės]], "") -> -2.00 EUR | H18: =IFERROR(Išlaidos[[#This Row],[Kiekis]]*Išlaidos[[#This Row],[Apytikslė]], "") -> 100.00 EUR | I18: =IFERROR(Išlaidos[[#This Row],[Kiekis]]*Išlaidos[[#This Row],[Faktinės]], "") -> 108.00 EUR | J18: =IFERROR(Išlaidos[[#This Row],[Apytikslė ]]-Išlaidos[[#This Row],[Faktinės ]], "") -> -8.00 EUR
B19: Kriauklės | C19: Klozetas, standartinis | D19: 2 | E19: 60.00 EUR | F19: 64.00 EUR | G19: =IFERROR(Išlaidos[[#This Row],[Apytikslė]]-Išlaidos[[#This Row],[Faktinės]], "") -> -4.00 EUR | H19: =IFERROR(Išlaidos[[#This Row],[Kiekis]]*Išlaidos[[#This Row],[Apytikslė]], "") -> 120.00 EUR | I19: =IFERROR(Išlaidos[[#This Row],[Kiekis]]*Išlaidos[[#This Row],[Faktinės]], "") -> 128.00 EUR | J19: =IFERROR(Išlaidos[[#This Row],[Apytikslė ]]-Išlaidos[[#This Row],[Faktinės ]], "") -> -8.00 EUR
B20: Kita | D20: 1 | E20: 20.00 EUR | F20: 24.00 EUR | G20: =IFERROR(Išlaidos[[#This Row],[Apytikslė]]-Išlaidos[[#This Row],[Faktinės]], "") -> -4.00 EUR | H20: =IFERROR(Išlaidos[[#This Row],[Kiekis]]*Išlaidos[[#This Row],[Apytikslė]], "") -> 20.00 EUR | I20: =IFERROR(Išlaidos[[#This Row],[Kiekis]]*Išlaidos[[#This Row],[Faktinės]], "") -> 24.00 EUR | J20: =IFERROR(Išlaidos[[#This Row],[Apytikslė ]]-Išlaidos[[#This Row],[Faktinės ]], "") -> -4.00 EUR
B21: Tarpinė suma | E21: =SUBTOTAL(109,Išlaidos[Apytikslė]) -> 1,464.50 EUR | F21: =SUBTOTAL(109,Išlaidos[Faktinės]) -> 1,624.00 EUR | G21: =SUBTOTAL(109,Išlaidos[Skirtumas]) -> -159.50 EUR | H21: =SUBTOTAL(109,Išlaidos[[Apytikslė ]]) -> 2,212.50 EUR | I21: =SUBTOTAL(109,Išlaidos[[Faktinės ]]) -> 2,597.00 EUR | J21: =SUBTOTAL(109,Išlaidos[[Skirtumas ]]) -> -384.50 EUR
B23: Nenumatytos išlaidos (pridėti maždaug 30 %) | E23: =IFERROR(Išlaidos[[#Totals],[Apytikslė]]*0.3, "") -> 439.35 EUR | H23: =IFERROR(Išlaidos[[#Totals],[Apytikslė ]]*0.3, "") -> 663.75 EUR
B24: Bendros išlaidos | E24: =IFERROR(SUM(E21:E21), "") -> 1,464.50 EUR | H24: =IFERROR(SUM(Išlaidos[[#Totals],[Apytikslė ]],Perteklius), "") -> 2,876.25 EUR
